bitfinex/quotes_BTCUSD_20251202
["timestamp","ask_amount","ask_price","bid_price","bid_amount"]
[1764664330050,2.23493354,86605.0,86604.0,0.0957556]
[1764664330415,2.23493354,86605.0,86604.0,0.0379756]
[1764664330619,2.23093354,86605.0,86604.0,0.0001156]
[1764664331459,2.64764354,86605.0,86604.0,0.0001156]
[1764664331673,2.59127354,86605.0,86604.0,0.0001156]
[1764664332086,2.64764354,86605.0,86604.0,0.0001156]
[1764664332298,2.65064354,86605.0,86604.0,0.0001156]
[1764664332496,2.64764354,86605.0,86604.0,0.0001156]
[1764664332698,2.7811895,86605.0,86604.0,0.0001156]
[1764664332900,2.7831895,86605.0,86604.0,0.0001156]
[1764664333057,0.23098955,86584.0,86583.0,0.01945]
[1764664333461,2.23099222,86583.0,86582.0,0.00134263]
[1764664333667,2.23099222,86583.0,86582.0,0.0014578]
[1764664335536,2.23199222,86583.0,86582.0,0.0014578]
[1764664336525,2.25652339,86583.0,86582.0,0.0014578]
[1764664336971,2.67323339,86583.0,86582.0,0.0014578]
[1764664337488,2.61686339,86583.0,86582.0,0.0014578]
[1764664338539,2.67323339,86583.0,86582.0,0.0014578]
[1764664338737,2.61686339,86583.0,86582.0,0.0014578]
[1764664342322,2.61686877,86583.0,86582.0,0.0014578]
[1764664342579,2.57952877,86583.0,86582.0,0.0014578]
[1764664343544,0.02553655,86583.0,86582.0,0.0904278]
[1764664343741,0.001,86583.0,86582.0,0.0904278]
[1764664343946,0.001,86583.0,86582.0,0.32142269]
[1764664346141,0.001,86583.0,86582.0,0.0904278]
[1764664346142,0.23199222,86583.0,86582.0,0.0904278]
[1764664346357,0.23199222,86583.0,86582.0,0.0367878]
[1764664348153,0.23199222,86583.0,86582.0,0.0014578]
[1764664348722,0.001,86583.0,86582.0,0.0014578]
[1764664348933,0.001,86583.0,86582.0,0.32142269]
[1764664349756,0.01154801,86595.0,86591.0,0.23097037]
[1764664350220,0.01154801,86595.0,86594.0,0.06256]
[1764664350406,0.01154787,86596.0,86594.0,0.29352288]
[1764664350620,2.0,86595.0,86594.0,0.25819288]
[1764664350826,2.0,86595.0,86594.0,0.06256]
[1764664350982,0.23096021,86595.0,86594.0,0.06256]
[1764664351522,2.0,86595.0,86594.0,0.06256]
[1764664351722,2.0,86595.0,86594.0,0.29352288]
[1764664352387,2.0,86600.0,86594.0,0.1162]
[1764664352584,2.0,86602.0,86601.0,0.23094421]
[1764664352788,0.323,86609.0,86608.0,0.23092554]
[1764664352973,2.3475572,86609.0,86608.0,0.23092554]
[1764664353447,2.3475572,86609.0,86608.0,0.31989554]
[1764664354121,2.323,86609.0,86608.0,0.31989554]
[1764664354318,0.323,86615.0,86614.0,0.23090955]
[1764664354545,2.34796138,86615.0,86614.0,0.23090955]
[1764664354845,2.02496138,86615.0,86614.0,0.26668955]
[1764664355253,2.35950672,86615.0,86611.0,0.23091666]
[1764664355428,0.01154627,86608.0,86602.0,0.23094123]
[1764664355739,0.01154627,86608.0,86598.0,0.01832]
[1764664355740,2.0,86610.0,86607.0,0.23092751]
[1764664355941,0.01154587,86611.0,86605.0,0.0084922]
[1764664356143,2.0,86611.0,86609.0,0.0362]
[1764664356323,2.0,86612.0,86609.0,0.0362]
[1764664356528,2.0,86611.0,86609.0,0.0362]
[1764664356781,2.0,86612.0,86610.0,0.05268]
[1764664357066,0.01154667,86605.0,86601.0,0.23094188]
[1764664357229,2.0,86611.0,86607.0,0.01154641]
[1764664357414,0.323,86613.0,86609.0,0.23092065]
[1764664357776,2.0,86612.0,86609.0,0.24246799]
[1764664357909,2.0,86612.0,86609.0,0.29514799]
[1764664358110,2.23091979,86611.0,86609.0,0.05268]
[1764664358313,0.24247559,86607.0,86602.0,0.23093911]
[1764664358550,0.23093122,86606.0,86603.0,0.24248556]
[1764664358754,0.24247559,86607.0,86606.0,0.0362]
[1764664359778,0.24249062,86602.0,86598.0,0.08254761]
[1764664360009,0.24249062,86602.0,86598.0,0.02986761]
[1764664360226,0.2309463,86601.0,86598.0,0.01832]
[1764664360396,0.23094688,86600.0,86598.0,0.24927124]
[1764664360572,0.23094688,86600.0,86598.0,0.01832]
[1764664360773,0.23094688,86600.0,86599.0,0.06325]
[1764664361142,0.23094688,86600.0,86599.0,0.11593]
[1764664362820,0.2309463,86601.0,86599.0,0.11593]
[1764664363020,0.242489,86602.0,86600.0,0.08888]
[1764664363217,0.242489,86602.0,86601.0,0.08888]
[1764664363437,0.242489,86602.0,86601.0,0.0362]
[1764664364569,0.01154681,86604.0,86601.0,0.08888]
[1764664364744,0.2309392,86603.0,86601.0,0.28362188]
[1764664365079,0.23093632,86604.0,86603.0,0.0362]
[1764664365285,0.23093632,86604.0,86603.0,0.08888]
[1764664367139,0.24246378,86611.0,86603.0,0.08888]
[1764664367140,0.00038508,86615.0,86614.0,0.23090955]
[1764664367339,0.00038508,86615.0,86614.0,0.31978955]
[1764664367953,0.00038508,86615.0,86614.0,0.08888]
[1764664368131,0.00038508,86615.0,86614.0,0.33806955]
[1764664368459,0.00038508,86615.0,86614.0,0.33906955]
[1764664369188,0.05070313,86645.0,86621.0,0.24243464]
[1764664369385,0.01154321,86631.0,86622.0,0.01154441]
[1764664369590,0.01154334,86630.0,86625.0,0.24242302]
[1764664369843,2.0,86634.0,86630.0,0.04774334]
[1764664369989,0.24237672,86642.0,86637.0,0.23084748]
[1764664370213,0.24237434,86643.0,86641.0,0.06325]
[1764664370416,0.23083492,86642.0,86641.0,0.02705]
[1764664370641,0.2316278,86642.0,86641.0,0.02705]
[1764664370927,0.00079288,86642.0,86641.0,0.06325]
[1764664371116,0.00079288,86642.0,86641.0,0.11593]
[1764664371519,0.00279288,86642.0,86641.0,0.11593]
[1764664371737,0.01154201,86640.0,86626.0,0.05268]
[1764664372091,0.01154401,86625.0,86619.0,0.02705]
[1764664372229,0.23088556,86623.0,86619.0,0.25794598]
[1764664372435,0.23088556,86623.0,86622.0,0.11593]
[1764664372987,0.24242508,86625.0,86622.0,0.11593]
[1764664373185,0.24242508,86625.0,86624.0,0.0362]
[1764664373544,0.24241627,86628.0,86624.0,0.08888]
[1764664373908,2.0,86638.0,86631.0,0.01154321]
[1764664374207,0.01154241,86637.0,86633.0,0.23085855]
[1764664374391,2.0,86637.0,86634.0,0.05268]
[1764664374593,2.0,86637.0,86636.0,0.29410091]
[1764664374841,0.2423844,86640.0,86636.0,0.06325]
[1764664375013,0.23084634,86638.0,86637.0,0.05268]
[1764664375573,0.23084634,86638.0,86637.0,0.08888]
[1764664376213,0.24238753,86639.0,86637.0,0.08888]
[1764664376392,0.24238325,86640.0,86638.0,0.08888]
[1764664376589,0.08157511,86690.0,86638.0,0.08888]
[1764664376590,0.23094288,86645.0,86639.0,0.26704284]
[1764664376936,0.2423712,86644.0,86643.0,0.0362]
[1764664377141,0.2423712,86644.0,86643.0,0.06325]
[1764664377345,0.00011551,86645.0,86643.0,0.11593]
[1764664377547,0.00011551,86645.0,86644.0,0.0362]
[1764664377889,0.23183043,86645.0,86644.0,0.0362]
[1764664378345,0.23383043,86645.0,86644.0,0.08888]
[1764664378554,0.0030035,86645.0,86644.0,0.08888]
[1764664378976,0.0030035,86645.0,86644.0,0.3197096]
[1764664379175,0.0030035,86645.0,86644.0,0.08888]
[1764664379526,0.0010035,86645.0,86644.0,0.08888]
[1764664379947,0.0030035,86645.0,86644.0,0.08888]
[1764664380152,0.0010035,86645.0,86644.0,0.08888]
[1764664380583,0.0020035,86645.0,86644.0,0.08888]
[1764664380794,0.0020035,86645.0,86644.0,0.0362]
[1764664381235,0.0020035,86645.0,86644.0,0.08888]
[1764664382570,0.0010035,86645.0,86644.0,0.08888]
[1764664382739,0.0010035,86645.0,86644.0,0.3197096]
[1764664382937,0.0020035,86645.0,86644.0,0.08888]
[1764664383374,0.0010035,86645.0,86644.0,0.08888]
[1764664383533,0.23183043,86645.0,86644.0,0.0362]
[1764664383942,0.0010035,86645.0,86644.0,0.0362]
[1764664384254,0.0010035,86645.0,86644.0,0.3197096]
[1764664389374,0.0010035,86645.0,86644.0,0.3207096]
[1764664389578,0.0010035,86645.0,86644.0,0.3197096]
[1764664389960,0.0010035,86645.0,86644.0,0.3217096]
[1764664390755,0.0010035,86645.0,86644.0,0.3197096]
[1764664392121,0.0010035,86645.0,86644.0,0.3217096]
[1764664392321,0.0010035,86645.0,86644.0,0.3197096]
[1764664392622,0.0010035,86645.0,86644.0,0.3379896]
[1764664392844,0.0010035,86645.0,86644.0,0.3409896]
[1764664395064,0.0010035,86645.0,86644.0,0.3227096]
[1764664395910,0.0010035,86645.0,86644.0,0.3197096]
[1764664396369,0.0010035,86645.0,86644.0,0.3217096]
[1764664402204,0.0010035,86645.0,86644.0,0.38223259]
[1764664402393,0.0010035,86645.0,86644.0,0.38523259]
[1764664403235,0.0010035,86645.0,86644.0,0.38223259]
[1764664403651,0.0010035,86645.0,86644.0,0.38623259]
[1764664404031,0.0010035,86645.0,86644.0,0.78623259]
[1764664404457,3.5e-06,86645.0,86644.0,1.10923259]
[1764664404649,0.0004,86660.0,86659.0,0.23078964]
[1764664404850,0.0004,86660.0,86659.0,0.33783964]
[1764664405211,0.00087555,86660.0,86659.0,0.33783964]
[1764664405420,0.00087555,86660.0,86659.0,0.40036263]
[1764664406862,0.0004,86680.0,86679.0,0.23073639]
[1764664407108,0.00051553,86680.0,86679.0,0.29116639]
[1764664407287,0.00051553,86680.0,86679.0,0.34604639]
[1764664408670,0.00051553,86680.0,86679.0,0.34704639]
[1764664410188,0.00051553,86680.0,86679.0,0.06143]
[1764664410458,0.23124926,86680.0,86679.0,0.06143]
[1764664410684,0.23124926,86680.0,86679.0,0.001]
[1764664411080,0.24228169,86676.0,86673.0,0.05488]
[1764664411310,0.23074704,86675.0,86673.0,0.05488]
[1764664411647,0.24229091,86673.0,86670.0,0.02654]
[1764664412048,0.24228471,86675.0,86672.0,0.03389]
[1764664412263,0.24228471,86675.0,86674.0,0.03389]
[1764664412829,0.23074704,86675.0,86674.0,0.03389]
[1764664413164,0.23222247,86675.0,86674.0,0.03389]
[1764664413366,0.00147543,86675.0,86674.0,0.03389]
[1764664413565,0.00147543,86675.0,86674.0,0.3195197]
[1764664414596,0.00047543,86675.0,86674.0,0.3195197]
[1764664415021,0.00147543,86675.0,86674.0,0.3195197]
[1764664415192,0.00047543,86675.0,86674.0,0.3195197]
[1764664415972,0.01153761,86673.0,86670.0,0.25729908]
[1764664416116,0.23074247,86677.0,86670.0,0.25729908]
[1764664416117,0.01205221,86680.0,86675.0,0.23074528]
[1764664416319,0.00051553,86680.0,86679.0,0.03548]
[1764664416522,0.00051553,86680.0,86679.0,0.0894]
[1764664416768,0.23124926,86680.0,86679.0,0.0894]
[1764664417158,0.23075457,86673.0,86671.0,0.05392]
[1764664417360,0.23075769,86671.0,86670.0,0.02654]
[1764664418057,0.23075769,86671.0,86656.0,0.02654]
[1764664418058,0.01153948,86659.0,86656.0,0.02654]
[1764664418240,0.23079497,86657.0,86656.0,0.02654]
[1764664418895,0.01154108,86647.0,86644.0,0.02684]
[1764664419116,0.24236518,86647.0,86644.0,0.02684]
[1764664419312,0.23082693,86645.0,86644.0,0.02684]
[1764664419742,0.23082693,86645.0,86644.0,0.0614]
[1764664420600,0.23082693,86645.0,86644.0,0.02684]
[1764664420805,0.23084292,86639.0,86638.0,0.02684]
[1764664421028,0.23084292,86639.0,86627.0,0.05392]
[1764664421029,0.01154254,86636.0,86627.0,0.05392]
[1764664421232,0.23085624,86634.0,86633.0,0.0014571]
[1764664421610,0.23085624,86634.0,86633.0,0.0360171]
[1764664421953,0.23085624,86634.0,86633.0,0.0014571]
[1764664422148,0.26493624,86634.0,86633.0,0.0014571]
[1764664422885,0.26493624,86634.0,86633.0,0.0024571]
[1764664423089,2.63129624,86634.0,86633.0,0.0024571]
[1764664424042,2.63129624,86634.0,86633.0,0.0014571]
[1764664424223,2.55385624,86634.0,86633.0,0.0014571]
[1764664424811,2.55685624,86634.0,86633.0,0.0014571]
[1764664425522,2.326,86634.0,86633.0,0.0014571]
[1764664425707,0.003,86634.0,86633.0,0.0360171]
[1764664425855,0.003,86634.0,86633.0,0.0899371]
[1764664428289,0.003,86634.0,86633.0,0.32079601]
[1764664429296,0.003,86634.0,86633.0,0.0360171]
[1764664429521,0.003,86634.0,86633.0,0.0014571]
[1764664429681,0.003,86634.0,86633.0,0.0360171]
[1764664430939,0.003,86634.0,86633.0,0.32079601]
[1764664431772,2.0,86637.0,86635.0,0.23085235]
[1764664431965,0.23083255,86643.0,86638.0,0.01154227]
[1764664432172,0.01154174,86642.0,86638.0,0.23084558]
[1764664432387,0.01154174,86642.0,86639.0,0.05392]
[1764664432591,0.2308377,86641.0,86639.0,0.05392]
[1764664432758,0.24236956,86645.0,86641.0,0.03456]
[1764664432959,0.24236956,86645.0,86642.0,0.03456]
[1764664432960,0.01154148,86644.0,86642.0,0.03456]
[1764664433306,2.23082693,86645.0,86644.0,0.03456]
[1764664433505,0.23082693,86645.0,86644.0,0.03456]
[1764664434874,0.23182693,86645.0,86644.0,0.03456]
[1764664435560,0.001,86645.0,86644.0,0.08848]
[1764664435762,0.001,86645.0,86644.0,0.3193096]
[1764664436774,0.001,86645.0,86644.0,0.08848]
[1764664437697,0.001,86645.0,86644.0,0.3193096]
[1764664439084,0.001,86645.0,86643.0,0.02684]
[1764664439521,0.23182914,86645.0,86643.0,0.02684]
[1764664439897,0.01154187,86641.0,86632.0,0.01154307]
[1764664440100,0.01154187,86641.0,86633.0,0.01165845]
[1764664440301,0.01154187,86641.0,86633.0,0.24251715]
[1764664440625,0.2423872,86639.0,86636.0,0.23084964]
[1764664440818,0.24238518,86639.0,86634.0,0.2308538]
[1764664440996,0.24238518,86639.0,86633.0,0.00011551]
[1764664440997,0.23085591,86635.0,86633.0,0.00011551]
[1764664441384,0.23085624,86634.0,86633.0,0.00011551]
[1764664442460,0.23085624,86634.0,86633.0,0.03467551]
[1764664442664,0.23085591,86635.0,86633.0,0.03467551]
[1764664442797,0.01154227,86638.0,86634.0,0.08848]
[1764664443021,2.0,86645.0,86641.0,0.01154187]
[1764664443221,0.01154014,86654.0,86641.0,0.01154187]
[1764664443222,2.323,86654.0,86653.0,0.0614]
[1764664443438,0.323,86654.0,86653.0,0.34612562]
[1764664443640,0.323,86654.0,86653.0,0.11532]
[1764664444355,2.0,86661.0,86653.0,0.34612542]
[1764664444549,2.0,86661.0,86655.0,0.03456]
[1764664444755,0.01153934,86660.0,86655.0,0.03456]
[1764664444955,0.01153961,86658.0,86655.0,0.03456]
[1764664445162,0.24233226,86658.0,86656.0,0.05392]
[1764664445385,0.24233226,86658.0,86657.0,0.03456]
[1764664445760,0.01153934,86660.0,86657.0,0.08322]
[1764664446148,2.0,86662.0,86659.0,0.03433]
[1764664446322,0.23078165,86662.0,86661.0,0.06092]
[1764664446563,0.01853358,86668.0,86639.0,0.02659]
[1764664446564,0.24235156,86651.0,86646.0,0.23082427]
[1764664446742,0.01154094,86648.0,86643.0,0.02982161]
[1764664446957,0.23081361,86650.0,86643.0,0.01828]
[1764664447087,0.23081361,86650.0,86647.0,0.03433]
[1764664447300,0.01154054,86651.0,86647.0,0.26515072]
[1764664447493,0.01154068,86650.0,86647.0,0.26515072]
[1764664447699,0.24235448,86650.0,86647.0,0.03433]
[1764664448361,0.24235448,86650.0,86649.0,0.03433]
[1764664448702,2.24234263,86655.0,86651.0,0.23080847]
[1764664448871,2.0,86654.0,86651.0,0.25739847]
[1764664449079,0.01154014,86654.0,86652.0,0.04866]
[1764664449374,0.01154014,86654.0,86653.0,0.03433]
[1764664449375,0.24234374,86654.0,86653.0,0.03433]
[1764664449597,2.0,86654.0,86653.0,0.26513562]
[1764664449720,0.01153988,86656.0,86653.0,0.31379562]
[1764664450082,0.24232958,86659.0,86655.0,0.2651303]
[1764664450302,0.24232958,86659.0,86654.0,0.04866]
[1764664450303,0.24233001,86659.0,86658.0,0.03433]
[1764664451448,0.33453855,86666.0,86658.0,0.09452961]
[1764664451698,2.01153908,86662.0,86659.0,0.03433]
[1764664451900,2.0,86661.0,86659.0,0.03433]
[1764664452056,0.01153921,86661.0,86660.0,0.04866]
[1764664452258,2.0,86661.0,86660.0,0.34036513]
[1764664452512,2.323,86663.0,86662.0,0.23078165]
[1764664452928,2.323,86663.0,86662.0,0.26511165]
[1764664453102,2.0,86663.0,86662.0,0.31377165]
[1764664453306,0.00025358,86668.0,86665.0,0.24231234]
[1764664453491,0.00025358,86668.0,86667.0,0.26509834]
[1764664454000,0.00025358,86668.0,86667.0,0.31375834]
[1764664454201,0.00025358,86668.0,86667.0,0.08299]
[1764664454402,0.00025358,86668.0,86667.0,0.31375834]
[1764664454804,0.00025358,86668.0,86660.0,0.03812934]
[1764664454987,0.00025358,86668.0,86654.0,0.23080171]
[1764664454988,0.01153894,86663.0,86654.0,0.23080171]
[1764664455189,0.00025358,86668.0,86652.0,0.01828]
[1764664455190,0.2307956,86657.0,86652.0,0.01828]
[1764664455390,0.24233534,86657.0,86652.0,0.01828]
[1764664455597,0.01154001,86655.0,86651.0,0.02659]
[1764664455841,0.23080829,86652.0,86651.0,0.02659]
[1764664456300,0.23080829,86652.0,86651.0,0.06092]
[1764664456880,0.23080647,86653.0,86651.0,0.06092]
[1764664457264,0.24234032,86655.0,86652.0,0.03433]
[1764664457604,0.01154001,86655.0,86654.0,0.03433]
[1764664457830,0.23077431,86665.0,86654.0,0.03433]
[1764664458037,0.33453908,86662.0,86655.0,0.01154001]
[1764664458235,0.56532077,86662.0,86657.0,0.23079484]
[1764664458411,0.56532077,86662.0,86658.0,0.23079199]
[1764664458711,0.24232388,86661.0,86658.0,0.23079199]
[1764664459376,0.01353908,86662.0,86660.0,0.03433]
[1764664459584,0.002,86662.0,86661.0,0.06092]
[1764664459802,2.2307714,86666.0,86661.0,0.10958]
[1764664459918,2.0,86665.0,86662.0,0.31377087]
[1764664460357,2.23077466,86665.0,86662.0,0.31377087]
[1764664460553,2.0,86664.0,86662.0,0.04866]
[1764664460748,0.23077899,86663.0,86662.0,0.04866]
[1764664461158,0.23077899,86663.0,86661.0,0.02659]
[1764664461374,2.0,86663.0,86662.0,0.03433]
[1764664462003,2.0,86663.0,86662.0,0.26511165]
[1764664462207,2.001,86663.0,86662.0,0.26511165]
[1764664462407,0.01153841,86667.0,86662.0,0.03433]
[1764664462626,2.0,86667.0,86665.0,0.23077179]
[1764664463204,2.0,86667.0,86666.0,0.313761]
[1764664463407,0.33453748,86674.0,86667.0,0.23076834]
[1764664463595,0.56528895,86674.0,86667.0,0.26509834]
[1764664463794,0.01153775,86672.0,86667.0,0.31375834]
[1764664463989,0.2422936,86672.0,86667.0,0.31375834]
[1764664464191,0.01153801,86670.0,86667.0,0.31375834]
[1764664464957,0.01153748,86674.0,86667.0,0.31375834]
[1764664465271,0.323,86675.0,86667.0,0.31375834]
[1764664465679,0.00125358,86668.0,86667.0,0.31375834]
[1764664466040,0.00025358,86668.0,86667.0,0.31375834]
[1764664467651,0.00025358,86668.0,86667.0,0.33203834]
[1764664469895,0.00025358,86668.0,86667.0,0.33403834]
[1764664470493,0.00025358,86668.0,86667.0,0.10327]
[1764664470696,0.00025358,86668.0,86667.0,0.33403834]
[1764664470911,0.00025358,86668.0,86667.0,0.08499]
[1764664471100,0.23101926,86668.0,86667.0,0.002]
[1764664471676,0.00025358,86668.0,86667.0,0.08752]
[1764664472132,0.00025358,86668.0,86667.0,0.08552]
[1764664473491,0.00025358,86668.0,86666.0,0.2307702]
[1764664473492,0.01153855,86666.0,86661.0,0.25737167]
[1764664473677,0.01153855,86666.0,86663.0,0.23077899]
[1764664473872,0.01153868,86665.0,86663.0,0.23077836]
[1764664474085,0.01153974,86657.0,86653.0,0.2308041]
[1764664474306,0.01153841,86667.0,86657.0,0.01153974]
[1764664474535,0.2307767,86664.0,86663.0,0.02587]
[1764664476011,0.2327767,86664.0,86663.0,0.02587]
[1764664476197,0.002,86664.0,86663.0,0.06011]
[1764664477220,0.002,86664.0,86663.0,0.29088899]
[1764664477683,0.002,86664.0,86663.0,0.34352899]
[1764664478859,0.00025358,86668.0,86667.0,0.23076834]
[1764664479184,0.00025358,86668.0,86667.0,0.26500834]
[1764664479481,0.00025358,86668.0,86667.0,0.31764834]
[1764664479714,0.00025358,86668.0,86663.0,0.02587]
[1764664479841,0.23102415,86668.0,86667.0,0.08688]
[1764664480255,0.00225358,86668.0,86667.0,0.08688]
[1764664480460,0.00225358,86668.0,86667.0,0.31764834]
[1764664481317,0.00025358,86668.0,86667.0,0.08688]
[1764664481673,0.00225358,86668.0,86667.0,0.08688]
[1764664481915,0.00225358,86668.0,86663.0,0.02587]
[1764664481916,0.23077633,86664.0,86663.0,0.02587]
[1764664482571,0.24232749,86660.0,86657.0,0.23079428]
[1764664482784,0.01153908,86662.0,86658.0,0.2307901]
[1764664482987,0.24232125,86662.0,86659.0,0.23078753]
[1764664483188,0.23077945,86663.0,86661.0,0.03424]
[1764664483851,0.23077945,86663.0,86661.0,0.26502373]
[1764664484048,0.23077945,86663.0,86661.0,0.03424]
[1764664484588,0.23077945,86663.0,86662.0,0.03424]
[1764664484815,0.24256228,86668.0,86664.0,0.23077425]
[1764664485040,0.24230914,86667.0,86664.0,0.23077425]
[1764664485358,0.00025358,86668.0,86667.0,0.03424]
[1764664485527,0.00025358,86668.0,86667.0,0.08688]
[1764664485727,0.00025358,86668.0,86667.0,0.31764834]
[1764664486082,0.00025358,86668.0,86667.0,0.08688]
[1764664486256,0.00025358,86668.0,86667.0,0.31764834]
[1764664486985,0.23101926,86668.0,86667.0,0.08688]
[1764664487283,0.00025358,86668.0,86667.0,0.31764834]
[1764664487488,0.00025358,86668.0,86667.0,0.08688]
[1764664487707,0.23101926,86668.0,86667.0,0.03424]
[1764664487908,0.23201926,86668.0,86667.0,0.03424]
[1764664489113,0.24231756,86664.0,86661.0,0.28341959]
[1764664489282,0.23077511,86665.0,86663.0,0.03424]
[1764664489482,0.24230874,86667.0,86661.0,0.23077959]
[1764664489483,0.24230874,86667.0,86662.0,0.23078]
[1764664489826,0.01279186,86668.0,86666.0,0.03424]
[1764664490028,0.00125358,86668.0,86667.0,0.03424]
[1764664490615,0.00125358,86668.0,86667.0,0.26500834]
[1764664490997,0.00025358,86668.0,86667.0,0.26500834]
[1764664491946,0.00125358,86668.0,86667.0,0.26500834]
[1764664492526,0.00125358,86668.0,86667.0,0.31764834]
[1764664493218,0.00125358,86668.0,86667.0,0.03424]
[1764664493389,0.00125358,86668.0,86667.0,0.26500834]
[1764664493820,0.00125358,86668.0,86667.0,0.31764834]
[1764664494229,0.00025358,86668.0,86667.0,0.31764834]
[1764664496906,0.01153868,86665.0,86663.0,0.01828]
[1764664497108,0.23077633,86664.0,86663.0,0.01828]
[1764664497707,0.01153908,86662.0,86659.0,0.05264]
[1764664497933,0.01153908,86662.0,86659.0,0.07092]
[1764664498137,0.23078465,86661.0,86659.0,0.30170855]
[1764664498347,0.23078465,86661.0,86660.0,0.05264]
[1764664498560,0.2423214,86662.0,86660.0,0.08688]
[1764664498765,0.2423214,86662.0,86661.0,0.03424]
[1764664500980,0.23079231,86658.0,86657.0,0.02568]
[1764664501133,0.23079231,86658.0,86657.0,0.05992]
[1764664501547,0.23079047,86659.0,86657.0,0.11256]
[1764664501728,0.23079047,86659.0,86658.0,0.03424]
[1764664501923,0.24232715,86660.0,86658.0,0.03424]
[1764664502379,0.24232715,86660.0,86658.0,0.08688]
[1764664502688,0.01153908,86662.0,86659.0,0.03424]
[1764664502860,0.23078698,86660.0,86659.0,0.03424]
[1764664504090,0.23078681,86661.0,86659.0,0.03424]
[1764664506629,0.23078698,86660.0,86659.0,0.03424]
[1764664506838,0.01154014,86654.0,86647.0,0.05448]
[1764664507038,0.23080766,86653.0,86647.0,0.30357948]
[1764664507239,0.23080829,86652.0,86648.0,0.23081682]
[1764664507617,0.23081894,86648.0,86647.0,0.01828]
[1764664507784,0.23081871,86649.0,86647.0,0.01828]
[1764664508438,0.24237094,86645.0,86639.0,0.02659]
[1764664508639,0.24237716,86642.0,86639.0,0.02659]
[1764664508865,0.23084006,86641.0,86639.0,0.02659]
[1764664509094,0.23084025,86640.0,86639.0,0.02659]
[1764664509264,0.23083182,86644.0,86639.0,0.02659]
[1764664509485,0.23084025,86640.0,86639.0,0.02659]
[1764664510419,0.23083776,86641.0,86639.0,0.02659]
[1764664510857,0.23084025,86640.0,86639.0,0.02659]
[1764664511219,0.24237673,86642.0,86639.0,0.25743056]
[1764664511767,0.26551209,86646.0,86639.0,0.25743056]
[1764664511768,0.03468739,86646.0,86643.0,0.23083048]
[1764664511948,2.0,86655.0,86649.0,0.23081373]
[1764664512149,2.0,86651.0,86650.0,0.23081361]
[1764664512354,0.01153934,86660.0,86655.0,0.24233993]
[1764664515071,0.002,86658.0,86657.0,0.32057497]
[1764664515491,2.0,86666.0,86664.0,0.23077431]
[1764664515696,2.0,86667.0,86666.0,0.230771]
[1764664515916,2.0,86667.0,86666.0,0.06231]
[1764664516124,2.23076834,86667.0,86666.0,0.06231]
[1764664516551,2.0,86667.0,86666.0,0.06231]
[1764664516776,2.0,86667.0,86666.0,0.293081]
[1764664517028,2.0,86667.0,86666.0,0.347561]
[1764664517220,2.0,86667.0,86666.0,0.11679]
[1764664517439,2.003,86667.0,86666.0,0.347561]
[1764664518318,2.0,86667.0,86666.0,0.347561]
[1764664518536,0.00025358,86668.0,86667.0,0.23076834]
[1764664518794,0.00025358,86668.0,86667.0,0.32054834]
[1764664520723,0.00125358,86668.0,86667.0,0.32054834]
[1764664520874,0.00125358,86668.0,86667.0,0.33882834]
[1764664522100,3.58e-06,86668.0,86667.0,0.33882834]
[1764664522303,0.0004,86680.0,86679.0,0.23073639]
[1764664522459,0.00051553,86680.0,86679.0,0.31005639]
[1764664522682,0.00051553,86680.0,86679.0,0.36054639]
[1764664522892,0.00089583,86680.0,86679.0,0.36054639]
[1764664524088,0.00089583,86680.0,86679.0,0.36254639]
[1764664524499,0.00089583,86680.0,86679.0,0.36454639]
[1764664525121,0.00089583,86680.0,86679.0,0.34626639]
[1764664525325,0.00089583,86680.0,86679.0,0.36454639]
[1764664526267,0.00089583,86680.0,86679.0,0.34626639]
[1764664526626,0.00089583,86680.0,86679.0,0.36454639]
[1764664527206,0.00089583,86680.0,86679.0,0.36054639]
[1764664527577,0.00089583,86680.0,86679.0,0.36154639]
[1764664527781,0.00089583,86680.0,86679.0,0.36054639]
[1764664528218,0.00089583,86680.0,86679.0,0.42306938]
[1764664529242,0.00089583,86680.0,86679.0,0.42606938]
[1764664529659,0.00089583,86680.0,86679.0,0.42306938]
[1764664530076,0.00089583,86680.0,86679.0,0.57556938]
[1764664532590,0.00089583,86680.0,86679.0,0.49476639]
[1764664532790,0.23066986,86704.0,86700.0,0.23068001]
[1764664532997,0.23105606,86710.0,86704.0,0.0566]
[1764664533148,2.0004,86710.0,86709.0,0.23065656]
[1764664533354,0.0004,86710.0,86709.0,0.26503656]
[1764664533556,0.0004,86710.0,86709.0,0.31774656]
[1764664533755,0.0004,86710.0,86709.0,0.08709]
[1764664533961,0.0004,86710.0,86704.0,0.02222]
[1764664533962,0.01153309,86707.0,86704.0,0.02222]
[1764664534171,0.01509,86709.0,86706.0,0.23066443]
[1764664534376,0.01153296,86708.0,86705.0,0.23066718]
[1764664534580,0.01409,86709.0,86706.0,0.23066286]
[1764664534921,0.23105408,86710.0,86708.0,0.03438]
[1764664534922,0.0004,86710.0,86708.0,0.03438]
[1764664535124,0.0004,86710.0,86709.0,0.03438]
[1764664535584,0.0004,86710.0,86709.0,0.0858]
[1764664535785,0.0004,86710.0,86709.0,0.03564]
[1764664535978,0.2310539,86710.0,86709.0,0.03564]
[1764664536166,0.01193269,86710.0,86704.0,0.02222]
[1764664536316,0.24358659,86710.0,86704.0,0.02222]
[1764664536680,0.24219088,86709.0,86704.0,0.02222]
[1764664536826,0.24219088,86709.0,86706.0,0.2306645]
[1764664537233,0.24219029,86709.0,86706.0,0.2306645]
[1764664537441,0.24358659,86710.0,86706.0,0.2306645]
[1764664537640,0.01193269,86710.0,86706.0,0.2306645]
[1764664537843,0.01193269,86710.0,86704.0,0.02222]
[1764664537844,0.24219622,86707.0,86704.0,0.02222]
[1764664538069,0.01153336,86705.0,86699.0,0.02222]
[1764664538273,0.00066532,86701.0,86700.0,0.23067822]
[1764664538476,0.00066532,86701.0,86699.0,0.02222]
[1764664538671,0.01153362,86703.0,86699.0,0.25290086]
[1764664538672,0.24220619,86703.0,86699.0,0.25290086]
[1764664538873,0.24219805,86706.0,86700.0,0.23067812]
[1764664539080,0.01409,86707.0,86701.0,0.01153389]
[1764664539302,0.25628574,86707.0,86703.0,0.23067146]
[1764664539487,0.25628574,86707.0,86704.0,0.23066971]
[1764664539886,0.01153322,86706.0,86703.0,0.23067146]
[1764664540089,0.001,86706.0,86704.0,0.23066912]
[1764664540290,0.24319802,86706.0,86705.0,0.03564]
[1764664540498,0.24219802,86706.0,86705.0,0.03564]